Cogmind - Beta 10.2 *** ADVENTURER MODE // 2021.06.08 @ 21:06:09 Player: ~Vlad~ Result: Destroyed by L-61 Swordsman with Power Sword Performance ------------- Evolutions (6) 3000 Regions Visited (14) 2800 Robots Destroyed (278) 1390 Value Destroyed (11321) 11321 Prototype IDs (18) 360 Alien Tech Used (1) 200 Bonus (1767) 1767 TOTAL SCORE: 20838 Bonus ------- High Alert Combat Kills 44 Follower Combat Kills 25 Met Warlord at Base 500 MAIN.C Attacked Warlord 500 Warlord Defense Kill 698 Cogmind --------- Core Integrity 0/1150 Matter 295/300 Energy 240/240 System Corruption 0% Temperature Cool (13) Movement Core (1150) Ox22 Location -4/Warlord Parts ------- > --- POWER (2) -------- Micro Fission Core Micro Fission Core > --- PROPULSION (5) --- (None) > --- UTILITY (10) ----- Large Storage Unit High-capacity Storage Unit Experimental Targeting Computer > --- WEAPON (3) ------- Vortex Rail > --- INVENTORY (18) --- Micro Fission Core Micro Fission Core Particle Reactor Centrium Wheel Large Storage Unit Large Storage Unit Medium Matter Pod (100) Advanced Terrain Scanner High-powered Shock Rifle Plasma Rifle Plasma Rifle Wave Gun Heavy Machine Gun Heavy Gauss Cannon Heavy Gauss Cannon Hypervelocity Mass Driver Long-range Missile Launcher Force Lance Peak State ------------ > --- POWER ------------ Heavy Deuterium Engine Micro Fission Core > --- PROPULSION ------- Improved Medium Treads Advanced Medium Treads Advanced Medium Treads Advanced Medium Treads Centrium Wheel > --- UTILITY ---------- Advanced Cryofiber Web Advanced Heat Sink Large Storage Unit Large Storage Unit High-capacity Storage Unit High-capacity Storage Unit Experimental Targeting Computer Layered Heavy Armor Plating Hacking Suite > --- WEAPON ----------- Tesla Rifle KE Penetrator Heavy Gauss Cannon > --- INVENTORY -------- Fission Core Micro Fission Core Micro Fission Core Light Antimatter Reactor Advanced Heat Sink Large Storage Unit Large Storage Unit Medium Matter Pod Matter Compressor Advanced Terrain Scanner Medium Armor Plating Medium Armor Plating Improved Medium Armor Plating Hardlight Generator Improved Shield Generator High-powered Shock Rifle High-powered Shock Rifle Tesla Rifle Plasma Rifle Force Rifle Heavy Disruptor Cannon Heavy Machine Gun KE Penetrator Magnetic Acceleration Cannon Hypervelocity Mass Driver Long-range Missile Launcher Force Lance [Rating: 113] Favorites ----------- Power Enhanced Nuclear Core Engine Improved Deuterium Engine Power Core Enhanced Nuclear Core Propulsion Medium Treads Treads Medium Treads Wheel Compact Wheel Utility Large Storage Unit Device Advanced Sensor Array Storage Large Storage Unit Processor Experimental Targeting Computer Hackware Hacking Suite Protection Improved Medium Armor Plating Weapon Improved Light Cannon Energy Gun High-powered Shock Rifle Energy Cannon Heavy Disruptor Cannon Ballistic Gun Gauss Rifle Ballistic Cannon Improved Light Cannon Launcher Long-range Missile Launcher Build | -11 -10 -9 -9 -8 -7 -7 -6 -5 -5 -5 -4 -4 -4 -4 ------- Run | Scr Mat Mat Min Mat Fac Sto Fac Fac Upp Upp Fac Upp Upp War Slots Evolved 12 | . . 2 . 2 2 . 2 2 . . 2 . . . Power 1 | . . . . . . . . . . . 1 . . . Propulsion 2 | . . . . . . . 1 1 . . . . . . Utility 8 | . . 1 . 2 2 . 1 1 . . 1 . . . Weapon 1 | . . 1 . . . . . . . . . . . . Parts Attached 243 | 6 10 6 3 14 14 32 42 19 3 14 54 20 . 6 Power 26 | 1 . 1 1 . 1 6 4 . . 4 6 1 . 1 Engine 10 | 1 . 1 1 . 1 4 . . . . 2 . . . Core 16 | . . . . . . 2 4 . . 4 4 1 . 1 Reactor . | . . . . . . . . . . . . . . . Propulsion 27 | 2 1 1 . 3 2 1 3 1 1 1 9 1 . 1 Treads 25 | 1 1 1 . 3 2 1 3 1 1 1 8 1 . 1 Leg . | . . . . . . . . . . . . . . . Wheel 2 | 1 . . . . . . . . . . 1 . . . Hover . | . . . . . . . . . . . . . . . Flight . | . . . . . . . . . . . . . . . Utility 83 | 1 5 3 1 6 4 6 17 12 1 4 12 10 . 1 Device 23 | . 1 1 . 2 1 1 5 3 . 1 5 3 . . Storage 14 | 1 4 2 . 1 . . 3 1 . . 1 1 . . Processor 6 | . . . . . 1 2 . 1 . 1 1 . . . Hackware 3 | . . . . . . . 1 1 . . 1 . . . Protection 37 | . . . 1 3 2 3 8 6 1 2 4 6 . 1 Artifact . | . . . . . . . . . . . . . . . Weapon 107 | 2 4 1 1 5 7 19 18 6 1 5 27 8 . 3 Energy Gun 30 | 2 2 . . . . 1 2 3 1 . 15 2 . 2 Energy Cannon 3 | . . . . . . . 2 . . . . 1 . . Ballistic Gun 26 | . . . . 1 5 7 4 3 . . 3 3 . . Ballistic Cannon 40 | . 2 1 1 4 2 7 9 . . 3 9 1 . 1 Launcher 8 | . . . . . . 4 1 . . 2 . 1 . . Special Weapon . | . . . . . . . . . . . . . . . Impact Weapon . | . . . . . . . . . . . . . . . Slashing Weapon . | . . . . . . . . . . . . . . . Piercing Weapon . | . . . . . . . . . . . . . . . Special Melee Weapon . | . . . . . . . . . . . . . . . Unidentified Prototypes 13 | . . . . 1 . 8 2 . 1 . . . . 1 Parts Lost 51 | . 1 . 1 . 1 2 3 1 . 5 12 8 2 15 Power 8 | . . . . . . 1 . . . 1 4 1 1 . Propulsion 9 | . . . . . . . 1 . . . 2 . 1 5 Utility 21 | . . . 1 . 1 1 1 1 . 3 1 5 . 7 Weapon 13 | . 1 . . . . . 1 . . 1 5 2 . 3 Highest Loss Streak 15 | . 1 . 1 . 1 1 2 1 . 5 3 4 2 15 Average Slot Usage (%) 95 | . 97 100 99 98 99 99 96 87 86 87 86 97 99 98 Engine 4 | . 14 11 11 9 6 3 . . . . 2 5 4 . Core 3 | . . . . . . 2 5 5 5 4 6 5 5 10 Treads 17 | . 14 18 22 17 15 14 16 10 13 15 15 23 25 24 Device 6 | . 6 11 7 8 12 7 5 5 5 3 2 7 5 4 Storage 23 | . 19 22 22 27 23 23 25 23 22 22 20 23 25 24 Processor 8 | . . . . . 7 14 13 11 11 12 13 5 5 5 Protection 7 | . . . 2 9 9 7 5 10 11 10 6 11 15 14 Energy Gun 1 | . 14 . . . . . . 1 5 3 4 2 . . Ballistic Gun 7 | . . . . . 16 16 8 4 11 7 1 6 10 9 Ballistic Cannon 11 | . 13 33 33 26 6 5 10 9 . 3 8 3 5 5 Naked Turns . | . . . . . . . . . . . . . . . Heaviest Build 162 | 13 29 53 57 80 84 87 130 133 129 148 162 155 154 148 Greatest Support 170 | 16 20 40 40 40 56 56 98 140 160 160 170 148 148 146 Greatest Overweight (x) 52 | 4 1 2 1 3 2 1 1 . . . 52 1 1 1 Average Overweight (x) . | 1 . 1 1 1 1 1 . . . . . . . . Largest Inventory Capacity 32 | 6 12 16 16 22 22 22 32 32 32 32 32 32 32 32 Average Capacity 26 | 5 7 14 16 22 22 22 30 32 32 32 32 32 32 31 Most Carried 32 | 6 9 16 16 22 22 22 32 32 32 32 31 32 30 31 Average Carried 23 | 3 5 11 15 18 20 21 25 29 31 30 26 29 30 28 Final Capacity 32 | 6 12 16 16 22 22 22 32 32 32 32 32 32 32 18 Final Carried 32 | 4 8 14 14 22 22 20 32 32 32 27 28 30 30 18 Class Distribution -------------------- 44% | Hauler-Skirmisher 17% | Hauler-Tank 10% | Tank 10% | Scavenger-Tank 6% | Hauler-Gunner 6% | Hauler-Mutant 3% | Mutant Dominant Class ---------------- Mutant | -10/Materials Tank | -9/Materials Tank | -9/Mines Hauler-Tank | -8/Materials Hauler-Tank | -7/Factory Hauler-Skirmisher | -7/Storage Hauler-Skirmisher | -6/Factory Hauler-Skirmisher | -5/Factory Hauler-Skirmisher | -5/Upper Caves Hauler-Skirmisher | -5/Upper Caves Hauler-Gunner | -4/Factory Scavenger-Tank | -4/Upper Caves Scavenger-Tank | -4/Upper Caves Scavenger-Tank | -4/Warlord Resources | -11 -10 -9 -9 -8 -7 -7 -6 -5 -5 -5 -4 -4 -4 -4 ----------- Run | Scr Mat Mat Min Mat Fac Sto Fac Fac Upp Upp Fac Upp Upp War Matter Collected 10530 | 254 78 685 297 732 1065 1596 1515 918 324 676 1096 1026 70 198 Remotely . | . . . . . . . . . . . . . . . Salvage Created 11011 | . 302 690 152 681 1265 1818 1450 948 375 846 1139 985 75 285 Parts 528 | . 15 49 12 55 65 97 62 44 13 25 43 35 . 13 Haulers Intercepted 16 | . 2 3 . 4 1 3 3 . . . . . . . Recyclers Shooed 1 | . . . . . . . . 1 . . . . . . Parts Field Recycled . | . . . . . . . . . . . . . . . Retrieved Matter . | . . . . . . . . . . . . . . . Parts Self-Destructed 149 | . . . . . . . . . 12 16 . 23 . 98 Prevented 25 | . . . . . . . . . 9 . . 6 . 10 Kills | -11 -10 -9 -9 -8 -7 -7 -6 -5 -5 -5 -4 -4 -4 -4 ------- Run | Scr Mat Mat Min Mat Fac Sto Fac Fac Upp Upp Fac Upp Upp War Combat Hostiles Destroyed 211 | . 7 17 12 20 22 31 19 14 6 13 24 20 1 5 Melee 2 | . . . . . . . . 1 . . 1 . . . Guns 80 | . 5 . . . 16 21 7 8 5 4 4 9 . 1 Cannons 112 | . 2 17 12 20 6 10 12 3 . 8 15 2 1 4 AOE 10 | . . . . . . . . . . 1 2 7 . . Classes Destroyed 18 | . 3 4 . 2 3 . . 1 1 3 . . . 1 Worker 10 | . . 2 . 1 1 . 3 2 . . 1 . . . Builder 6 | . . . . 2 1 2 1 . . . . . . . Tunneler 1 | . . . . . . . . 1 . . . . . . Hauler 16 | . 2 3 . 4 1 3 3 . . . . . . . Recycler 5 | . . . . . 1 2 1 1 . . . . . . Mechanic 1 | . . . . . . . . . . 1 . . . . Operator 4 | . . . . 1 1 . . 2 . . . . . . Watcher 24 | . 1 5 . 4 3 2 7 2 . . . . . . Swarmer 34 | . . 3 8 6 . 3 . 4 2 . 3 5 . . Grunt 89 | . 7 10 2 8 13 16 7 2 3 7 9 2 . 3 Brawler 6 | . . 1 . . . . . . . 2 . 2 . 1 Duelist 5 | . . . . . . . . . . 1 . 4 . . Sentry 37 | . . 3 2 6 2 7 3 4 . 2 4 3 1 . Specialist 1 | . . . . . . . . . . . . . . 1 Hunter 7 | . . . . . 2 . 2 . 1 . . 2 . . Programmer 32 | . . . . . 5 5 7 4 . 1 8 2 . . Samaritan 6 | . . . . . . . . . . 5 . 1 . . Tinkerer 1 | . . . . . . . . . 1 . . . . . Best Kill Streak 10 | . 4 4 4 6 7 5 6 10 3 6 4 9 1 3 Combat Bots Only 9 | . 4 3 4 5 5 4 3 6 3 5 4 9 1 3 Max Kills in Single Turn 5 | . 1 2 2 1 2 3 2 1 1 3 2 5 1 1 Gunslinging . | . . . . . . . . . . . . . . . Exploded 5 | . . . . . . . . . . 1 2 5 . . Melee 1 | . . . . . . . . 1 . . 1 . . . Uniques/NPCs Destroyed . | . . . . . . . . . . . . . . . Combat | -11 -10 -9 -9 -8 -7 -7 -6 -5 -5 -5 -4 -4 -4 -4 -------- Run | Scr Mat Mat Min Mat Fac Sto Fac Fac Upp Upp Fac Upp Upp War Damage Taken 15559 | . 256 193 279 586 773 1046 1246 1368 184 1722 4026 1730 243 1907 Core 1870 | . 33 34 28 48 127 66 172 128 17 52 644 58 . 463 Absorbed by Shields 495 | . . 72 81 177 165 . . . . . . . . . Reduced by Siege Mode 242 | . . . . . . . . 58 14 140 30 . . . Core Remaining (%) 84 | 100 86 . 84 91 . 72 79 . . 80 . . . . Volleys Fired 690 | . 33 42 20 57 66 88 77 63 30 49 107 39 2 17 Largest 3 | . 2 3 3 3 3 3 3 3 3 3 3 3 3 3 Hottest 201 | . 100 117 117 117 117 100 126 156 126 149 201 196 119 119 Shots Fired 1803 | . 64 126 60 163 198 263 226 123 90 121 239 86 7 37 Gun 907 | . 38 . . . 159 187 105 71 90 76 104 51 5 21 Cannon 888 | . 26 126 60 163 39 73 121 52 . 43 135 32 2 16 Launcher 8 | . . . . . . 3 . . . 2 . 3 . . Special . | . . . . . . . . . . . . . . . Kinetic 1554 | . 26 126 60 163 198 260 226 82 60 106 171 33 7 36 Thermal 65 | . 37 . . . . . . . . . 5 23 . . Explosive 7 | . . . . . . 2 . . . 2 . 3 . . Electromagnetic 176 | . 1 . . . . 1 . 41 30 13 63 27 . . Entropic 1 | . . . . . . . . . . . . . . 1 Robot Hit Streak 132 | . 13 14 17 16 30 63 42 40 25 46 132 44 10 25 Robot Miss Streak 3 | . 1 3 1 3 3 3 2 2 1 1 1 1 . 1 Penetration Max 1 | . . . . . 1 1 1 1 . 1 . . . 1 Secondary Targets 6 | . 1 . . . 2 . . . . 3 . . . . Max Gunslinging Chain 1 | . 1 . . . 1 . . . . 1 . . . . Shots Hit Robots 1283 | . 52 67 40 109 148 176 166 94 39 104 182 66 6 34 Core Hits 512 | . 19 31 14 46 57 73 65 38 13 43 55 42 3 13 Critical Hits 58 | . . 3 . 1 4 8 9 3 1 5 17 4 . 3 Critical Kills 28 | . . 2 . 1 3 3 3 2 . 1 8 3 . 2 Critical Parts Destroyed 26 | . . 1 . . 1 4 6 1 1 3 8 . . 1 Melee Attacks . | . . . . . . . . . . . . . . . Impact . | . . . . . . . . . . . . . . . Slashing . | . . . . . . . . . . . . . . . Piercing . | . . . . . . . . . . . . . . . Sneak Attacks . | . . . . . . . . . . . . . . . Combat Hostiles . | . . . . . . . . . . . . . . . Follow-up Attacks . | . . . . . . . . . . . . . . . Damage Inflicted 31511 | . 840 1281 823 2309 2877 4224 4335 2228 808 3501 4395 2792 155 943 Guns 14500 | . 390 . . . 2282 3184 2145 1331 808 1541 1211 976 97 535 Cannons 14736 | . 450 1267 823 2309 590 1009 2190 844 . 1177 2996 615 58 408 Explosions 2193 | . . . . . . 25 . 41 . 780 146 1201 . . Melee . | . . . . . . . . . . . . . . . Ramming 82 | . . 14 . . 5 6 . 12 . 3 42 . . . Kinetic 25905 | . 450 1267 823 2309 2872 4193 4335 1408 480 2469 3634 598 155 912 Thermal 1137 | . 378 . . . . . . 41 . 57 173 488 . . Explosive 1924 | . . . . . . . . . . 723 . 1201 . . Electromagnetic 2432 | . 12 . . . . 25 . 767 328 249 546 505 . . Impact . | . . . . . . . . . . . . . . . Slashing . | . . . . . . . . . . . . . . . Piercing . | . . . . . . . . . . . . . . . Entropic 31 | . . . . . . . . . . . . . . 31 Highest Corruption 11 | . . 1 1 . 4 7 1 1 1 5 7 11 11 11 Average Corruption 3 | . . 1 1 . 2 5 1 1 1 2 4 9 11 11 Corruption Purged . | . . . . . . . . . . . . . . . Effects 355 | . . 1 7 . 20 100 15 3 9 27 51 110 8 4 Message Errors 85 | . . 1 4 . 4 15 9 3 3 11 10 23 1 1 Matter Fused 67 | . . . . . 7 21 . . . 4 9 25 . 1 Heat Flow Errors 33 | . . . . . 2 13 . . . . 2 12 3 1 Energy Discharges 40 | . . . 3 . 2 11 3 . 1 2 6 11 . 1 Parts Rejected 2 | . . . . . . . . . . . 2 . . . Data Loss (minor) 43 | . . . . . 3 12 1 . 4 4 8 9 2 . Data Loss (major) 9 | . . . . . . 4 . . . . . 5 . . Misfires 11 | . . . . . . 4 . . . 1 . 5 1 . Alerts 3 | . . . . . . . . . . . . 3 . . Misdirections 13 | . . . . . . . . . . . . 13 . . Targeting Errors 46 | . . . . . 2 19 1 . 1 5 13 4 1 . Weapon Failures 3 | . . . . . . 1 1 . . . 1 . . . Overload Shots . | . . . . . . . . . . . . . . . Overflow Damage 440 | . 6 . 7 50 10 4 83 22 . 58 155 45 . . Projectiles 317 | . 6 . 7 50 10 4 83 11 . 27 119 . . . Explosions 123 | . . . . . . . . 11 . 31 36 45 . . Melee . | . . . . . . . . . . . . . . . Knockbacks 112 | . 4 9 4 23 7 6 22 10 . 4 18 2 . 3 Impact 1 | . . . . . . . . . . . 1 . . . Kinetic 100 | . 4 9 3 17 7 6 20 10 . 4 15 2 . 3 Secondary 11 | . . . 1 6 . . 2 . . . 2 . . . Self-Inflicted Damage 245 | . . . . . . 16 . . . . 65 164 . . Shots 5 | . . . . . . 1 . . . . 1 3 . . Rammed 13 | . . 5 . . 1 1 . . . 1 5 . . . Targets Rammed 15 | . . 5 . . 1 1 . 1 . 1 6 . . . Kicked . | . . . . . . . . . . . . . . . Crushed 2 | . . . . . . . . 1 . . 1 . . . Highest Temperature 765 | . 174 338 297 606 402 361 240 249 282 188 765 256 189 66 Average Temperature 102 | . 47 79 120 146 96 80 60 56 98 73 193 71 72 19 Received Heat Transfer 3370 | . 192 66 97 288 288 426 204 207 54 612 483 99 93 261 Effects 77 | . . . . 15 2 3 . . 1 . 56 . . . Shutdowns 17 | . . . . 3 1 . . . . . 13 . . . Energy Bleed 10 | . . . . 3 . 2 . . . . 5 . . . Interference 16 | . . . . 4 . . . . 1 . 11 . . . Matter Decay 9 | . . . . 3 1 . . . . . 5 . . . Short Circuit 5 | . . . . 1 . . . . . . 4 . . . Damage (minor) 5 | . . . . . . 1 . . . . 4 . . . Damage (major) 12 | . . . . 1 . . . . . . 11 . . . Damage (core) 3 | . . . . . . . . . . . 3 . . . Siege Activations 5 | . . . . . . . 1 1 1 1 1 . . . Total Turns 150 | . . . . . . . 1 39 27 68 15 . . . Longest Duration 68 | . . . . . . . 1 39 27 68 15 . . . Robots Corrupted 7 | . . . . . . . . 2 1 . 2 2 . . Combat Hostiles 7 | . . . . . . . . 2 1 . 2 2 . . Parts Fried 16 | . . . . . . . . 7 1 1 6 1 . . Impact Corruptions 1 | . . . 1 . . . . . . . . . . . Robots Melted . | . . . . . . . . . . . . . . . Combat Hostiles . | . . . . . . . . . . . . . . . Parts Melted 3 | . 2 . . . . . . . . . . 1 . . Heat Transferred 2141 | . 1110 . . . . . . 50 . 50 100 831 . . Parts Sabotaged . | . . . . . . . . . . . . . . . Parts Stolen . | . . . . . . . . . . . . . . . Parts Stripped . | . . . . . . . . . . . . . . . Power Chain Reactions 3 | . . . . . . . . 1 . 1 1 . . . Missiles Intercepted . | . . . . . . . . . . . . . . . Alert | -11 -10 -9 -9 -8 -7 -7 -6 -5 -5 -5 -4 -4 -4 -4 ------- Run | Scr Mat Mat Min Mat Fac Sto Fac Fac Upp Upp Fac Upp Upp War Peak Influence 534 | . 198 239 176 168 534 249 125 241 . . 236 . . . Initial 64 | . . 5 16 6 64 43 64 . . . 7 . . . Average 79 | . 58 75 42 77 207 96 38 57 . . 69 . . . Maximum Alert Level 2 | . . 1 . . 2 1 . 1 . . 1 . . . Low Security (%) 90 | 100 100 92 100 100 52 86 100 90 . . 94 . . . Level 1 7 | . . 7 . . 30 13 . 9 . . 5 . . . Level 2 2 | . . . . . 16 . . . . . . . . . Level 3 . | . . . . . . . . . . . . . . . Level 4 . | . . . . . . . . . . . . . . . Level 5 . | . . . . . . . . . . . . . . . High Security . | . . . . . . . . . . . . . . . Max Security . | . . . . . . . . . . . . . . . Squads Dispatched 49 | . . 1 1 1 11 12 9 4 . 1 9 . . . Investigation 11 | . . 1 1 1 4 2 1 . . . 1 . . . Extermination 24 | . . . . . 4 5 7 3 . . 5 . . . Reinforcement 6 | . . . . . 2 3 1 . . . . . . . Assault 1 | . . . . . . . . . . 1 . . . . Garrison 7 | . . . . . 1 2 . 1 . . 3 . . . Intercept . | . . . . . . . . . . . . . . . Construction Impeded 1 | . . . . . 1 . . . . . . . . . Haulers Reinforced 3 | . . . . . . 2 1 . . . . . . . Stealth | -11 -10 -9 -9 -8 -7 -7 -6 -5 -5 -5 -4 -4 -4 -4 --------- Run | Scr Mat Mat Min Mat Fac Sto Fac Fac Upp Upp Fac Upp Upp War Distress Signals 9 | . 1 2 . 2 . . 3 . . . 1 . . . Communications Jammed . | . . . . . . . . . . . . . . . Distress Signals . | . . . . . . . . . . . . . . . Times Spotted 295 | . 12 23 13 29 29 34 30 21 6 17 36 19 5 21 Peak Tracking Total 15 | . 5 3 4 5 4 5 4 4 3 8 6 9 4 15 Tactical Retreats 16 | . 1 1 1 . 1 1 2 . . 2 7 . . . Traps | -11 -10 -9 -9 -8 -7 -7 -6 -5 -5 -5 -4 -4 -4 -4 ------- Run | Scr Mat Mat Min Mat Fac Sto Fac Fac Upp Upp Fac Upp Upp War Traps Triggered 14 | . . 2 . 1 3 . 6 2 . . . . . . Indirectly . | . . . . . . . . . . . . . . . Trap Hack Attempts . | . . . . . . . . . . . . . . . Triggered . | . . . . . . . . . . . . . . . Disarmed . | . . . . . . . . . . . . . . . Reprogrammed . | . . . . . . . . . . . . . . . Reused . | . . . . . . . . . . . . . . . Traps Extracted . | . . . . . . . . . . . . . . . Installed . | . . . . . . . . . . . . . . . Triggered 14 | . . . . . . . . . 3 . . . . 11 Machines | -11 -10 -9 -9 -8 -7 -7 -6 -5 -5 -5 -4 -4 -4 -4 ---------- Run | Scr Mat Mat Min Mat Fac Sto Fac Fac Upp Upp Fac Upp Upp War Machines Disabled 17 | . . 1 1 1 2 5 1 . 2 1 1 2 . . Max in Single Turn 1 | . . 1 1 1 1 1 1 . 1 1 1 1 . . Machines Sabotaged . | . . . . . . . . . . . . . . . Garrisons Compromised . | . . . . . . . . . . . . . . . Overloaded Fab Kills . | . . . . . . . . . . . . . . . Fab Network Shutdowns 1 | . . . . . 1 . . . . . . . . . Hacking | -11 -10 -9 -9 -8 -7 -7 -6 -5 -5 -5 -4 -4 -4 -4 --------- Run | Scr Mat Mat Min Mat Fac Sto Fac Fac Upp Upp Fac Upp Upp War Machines Accessed 61 | . 6 3 1 9 8 8 9 4 . . 5 . . 8 Terminals 31 | . 5 3 . 6 4 7 1 2 . . 3 . . . Fabricators 3 | . . . . . 1 . 1 1 . . . . . . Repair Stations 8 | . . . . 1 1 1 2 1 . . 2 . . . Recycling Units 7 | . 1 . . 1 2 . 3 . . . . . . . Scanalyzers 3 | . . . . 1 . . 2 . . . . . . . Garrison Access . | . . . . . . . . . . . . . . . Total Hacks 167 | . 15 9 1 44 24 18 25 7 . . 12 . . 12 Successful 120 | . 11 8 1 37 15 10 17 3 . . 6 . . 12 Failed 47 | . 4 1 . 7 9 8 8 4 . . 6 . . . Catastrophic 8 | . . . . 2 2 2 1 1 . . . . . . Database Lockouts . | . . . . . . . . . . . . . . . Manual 55 | . 12 5 . 13 8 7 4 2 . . 3 . . 1 Terminals 87 | . 14 9 . 25 10 15 6 3 . . 5 . . . Fabricators 7 | . . . . . 3 . 2 2 . . . . . . Repair Stations 42 | . . . . 16 4 3 10 2 . . 7 . . . Recycling Units 13 | . 1 . . 1 7 . 4 . . . . . . . Scanalyzers 5 | . . . . 2 . . 3 . . . . . . . Garrison Access . | . . . . . . . . . . . . . . . Terminal Hacks 61 | . 7 7 1 15 3 8 5 1 . . 2 . . 12 Record 28 | . . 2 . 4 1 4 3 1 . . 2 . . 11 Robot Analysis 2 | . 1 . . 1 . . . . . . . . . . Prototype ID Bank 3 | . 1 . . 1 . 1 . . . . . . . . Open Door 4 | . . . 1 . . 2 . . . . . . . 1 Level Access Points 1 | . . 1 . . . . . . . . . . . . Branch Access Points 3 | . . 1 . 1 . . 1 . . . . . . . Emergency Access Points 1 | . . . . 1 . . . . . . . . . . Alert Level 6 | . . 1 . 4 . . 1 . . . . . . . Unreport Threat 2 | . . 1 . . 1 . . . . . . . . . Locate Traps 6 | . 3 . . 2 1 . . . . . . . . . Dispatch Records 1 | . 1 . . . . . . . . . . . . . Patrol Status 1 | . . 1 . . . . . . . . . . . . Hauler Manifests 1 | . . . . . . 1 . . . . . . . . Zone Layout 2 | . 1 . . 1 . . . . . . . . . . Fabricator Hacks 5 | . . . . . 3 . 1 1 . . . . . . Network Status 1 | . . . . . . . . 1 . . . . . . Load Schematic 1 | . . . . . 1 . . . . . . . . . Build 3 | . . . . . 2 . 1 . . . . . . . Repair Station Hacks 30 | . . . . 16 2 2 6 1 . . 3 . . . Scan Component 16 | . . . . 8 1 1 3 1 . . 2 . . . Repair 14 | . . . . 8 1 1 3 . . . 1 . . . Recycling Unit Hacks 11 | . 1 . . 1 6 . 3 . . . . . . . Recycle Component 2 | . . . . . 2 . . . . . . . . . Process 1 | . . . . . 1 . . . . . . . . . Report Inventory 7 | . 1 . . 1 2 . 3 . . . . . . . Retrieve Matter 1 | . . . . . 1 . . . . . . . . . Scanalyzer 4 | . . . . 2 . . 2 . . . . . . . Insert Component 2 | . . . . 1 . . 1 . . . . . . . Analyze 2 | . . . . 1 . . 1 . . . . . . . Garrison Access Hacks . | . . . . . . . . . . . . . . . Unauthorized Hacks 9 | . 3 1 . 3 1 . . . . . 1 . . . Terminals 9 | . 3 1 . 3 1 . . . . . 1 . . . Track 5 | . 2 1 . 2 . . . . . . . . . . Botnet 4 | . 1 . . 1 1 . . . . . 1 . . . Fabricators . | . . . . . . . . . . . . . . . Repair Stations . | . . . . . . . . . . . . . . . Recycling Units . | . . . . . . . . . . . . . . . Scanalyzers . | . . . . . . . . . . . . . . . Garrison Access . | . . . . . . . . . . . . . . . Data Cores Recovered 4 | . . . . 1 1 . . 2 . . . . . . Used . | . . . . . . . . . . . . . . . Hacking Detections 38 | . 4 2 . 6 7 4 8 3 . . 4 . . . Full Trace Events 11 | . 2 . . 1 4 2 1 . . . 1 . . . Feedback Events 1 | . . . . . 1 . . . . . . . . . Corruption 1 | . . . . . 1 . . . . . . . . . Feedback Blocked . | . . . . . . . . . . . . . . . Robot Schematics Acquired . | . . . . . . . . . . . . . . . Robots Built . | . . . . . . . . . . . . . . . Matter . | . . . . . . . . . . . . . . . Time . | . . . . . . . . . . . . . . . Total Robot Build Rating . | . . . . . . . . . . . . . . . Part Schematics Acquired 1 | . . . . 1 . . . . . . . . . . Parts Built 4 | . . . . . 2 . 2 . . . . . . . Matter 694 | . . . . . 438 . 256 . . . . . . . Time 296 | . . . . . 232 . 64 . . . . . . . Total Part Build Rating 22 | . . . . . 6 . 16 . . . . . . . Parts Repaired 14 | . . . . 8 1 1 3 . . . 1 . . . Time 444 | . . . . 248 19 22 121 . . . 34 . . . Parts Recycled 2 | . . . . . 2 . . . . . . . . . Recycled Matter 19 | . . . . . 19 . . . . . . . . . Retrieved Matter . | . . . . . . . . . . . . . . . Retrieved Components . | . . . . . . . . . . . . . . . Parts Scanalyzed 2 | . . . . 1 . . 1 . . . . . . . Part Schematics Acquired 1 | . . . . 1 . . . . . . . . . . Parts Damaged . | . . . . . . . . . . . . . . . Bothacking | -11 -10 -9 -9 -8 -7 -7 -6 -5 -5 -5 -4 -4 -4 -4 ------------ Run | Scr Mat Mat Min Mat Fac Sto Fac Fac Upp Upp Fac Upp Upp War Used RIF Installer . | . . . . . . . . . . . . . . . Robots Hacked . | . . . . . . . . . . . . . . . Non-combat . | . . . . . . . . . . . . . . . Combat . | . . . . . . . . . . . . . . . Robot Hacks Applied . | . . . . . . . . . . . . . . . Relay Couplers Released . | . . . . . . . . . . . . . . . Robots Rewired . | . . . . . . . . . . . . . . . Allies Hacked . | . . . . . . . . . . . . . . . Hacks Repelled . | . . . . . . . . . . . . . . . Allies | -11 -10 -9 -9 -8 -7 -7 -6 -5 -5 -5 -4 -4 -4 -4 -------- Run | Scr Mat Mat Min Mat Fac Sto Fac Fac Upp Upp Fac Upp Upp War Total Allies 2 | . . . 2 . . . . . . . . . . . Largest Group 2 | . . . 2 . . . . . . . . . . . Highest-Rated Group 52 | . . . 52 . . . . . . . . . . . Highest-Rated Ally 31 | . . . 31 . . . . . . . . . . . Total Orders . | . . . . . . . . . . . . . . . Ally Attacks 3 | . . . 3 . . . . . . . . . . . Total Damage 63 | . . . 63 . . . . . . . . . . . Kills 1 | . . . 1 . . . . . . . . . . . Allies Corrupted . | . . . . . . . . . . . . . . . Allies Melted . | . . . . . . . . . . . . . . . Intel | -11 -10 -9 -9 -8 -7 -7 -6 -5 -5 -5 -4 -4 -4 -4 ------- Run | Scr Mat Mat Min Mat Fac Sto Fac Fac Upp Upp Fac Upp Upp War Robot Analysis Total 2 | . 1 . . 1 . . . . . . . . . . Derelict Logs Recovered 8 | . . . 1 . . . . . 2 3 . 2 . . Drone Launches . | . . . . . . . . . . . . . . . Drone Recoveries . | . . . . . . . . . . . . . . . Exploration | -11 -10 -9 -9 -8 -7 -7 -6 -5 -5 -5 -4 -4 -4 -4 ------------- Run | Scr Mat Mat Min Mat Fac Sto Fac Fac Upp Upp Fac Upp Upp War Turns Passed 29757 | 145 1005 1523 1743 1884 2622 3175 5651 1751 1977 1713 2361 2765 267 1175 Spaces Moved 14780 | 83 545 761 904 747 1218 1337 2572 990 1246 1008 1030 1545 153 641 Core 70 | 64 . . . . . . . . . . 6 . . . Treads 14144 | . 119 640 904 747 1218 1337 2572 990 1246 1008 1024 1545 153 641 Legs . | . . . . . . . . . . . . . . . Wheels 566 | 19 426 121 . . . . . . . . . . . . Hover . | . . . . . . . . . . . . . . . Flight . | . . . . . . . . . . . . . . . Fastest Speed 50 | 50 100 120 180 180 180 180 152 145 145 145 150 151 151 152 Average Speed 168 | 156 121 169 180 184 186 180 175 145 148 152 176 168 170 173 Slowest Speed 2650 | 250 180 180 180 220 200 180 180 145 153 153 2650 171 172 174 Overloaded Moves . | . . . . . . . . . . . . . . . Propulsion Burnouts . | . . . . . . . . . . . . . . . Robots Hopped . | . . . . . . . . . . . . . . . Cave-ins Triggered . | . . . . . . . . . . . . . . . Exploration Rate (%) 52 | 7 59 51 97 48 20 82 38 14 94 65 19 96 30 65 Regions Visited 14 Branch Regions 7 Pre-discovered Areas 2 | . . . 1 . . . . . . . . 1 . . Known Exits Taken 10 | . . 1 1 . 1 1 1 1 1 1 1 . 1 . Unknown Exits Taken 4 | 1 1 . . 1 . . . . . . . 1 . . Scrap Searched 16 | . . . 3 . . . . . 5 3 . 5 . . Spaces Dug 36 | . . . . . . 14 4 4 5 . 9 . . . Terrain Destroyed 238 | . 2 12 4 9 1 34 13 11 10 60 36 39 1 6 Melee . | . . . . . . . . . . . . . . . Projectile 121 | . 2 12 4 9 1 11 13 9 10 16 16 11 1 6 AOE 117 | . . . . . . 23 . 2 . 44 20 28 . . Terrain Rammed . | . . . . . . . . . . . . . . . Walls Destroyed . | . . . . . . . . . . . . . . . Machines Disabled . | . . . . . . . . . . . . . . . Actions | -11 -10 -9 -9 -8 -7 -7 -6 -5 -5 -5 -4 -4 -4 -4 --------- Run | Scr Mat Mat Min Mat Fac Sto Fac Fac Upp Upp Fac Upp Upp War Total 18278 | 98 828 902 976 1136 1466 1911 3539 1208 1310 1083 1368 1629 154 670 Wait 2229 | . 223 67 46 284 138 417 783 105 22 5 131 8 . . Move 14766 | 82 544 760 903 746 1217 1336 2571 989 1245 1007 1029 1544 152 641 Hop . | . . . . . . . . . . . . . . . Pick Up 214 | 10 10 15 2 26 19 17 47 16 4 3 27 14 . 4 Fast Attach 8 | . 1 . . . . 3 1 1 1 . . 1 . . Attach 124 | 6 2 3 1 10 9 4 21 9 3 8 30 13 . 5 Detach 10 | . . . . . . . . . 1 1 5 2 . 1 Swap 113 | . 7 3 2 4 5 25 20 9 . 6 24 6 . 2 Drop 109 | . 8 7 2 9 11 20 19 15 4 3 9 2 . . Fire 690 | . 33 42 20 57 66 88 77 63 30 49 107 39 2 17 Melee . | . . . . . . . . . . . . . . . Ram . | . . . . . . . . . . . . . . . Kick . | . . . . . . . . . . . . . . . Crush 15 | . . 5 . . 1 1 . 1 . 1 6 . . . Escape Stasis . | . . . . . . . . . . . . . . . Rewire . | . . . . . . . . . . . . . . . Trap . | . . . . . . . . . . . . . . . Miscellaneous . | . . . . . . . . . . . . . . . Route ------- -11/Scrapyard -10/Materials (discovered 2 exits: *Mat / [*Min]) -9/Materials (discovered 4 exits: *Mat x3 / *Min) -9/Mines (discovered 2 exits: *Mat x2) -8/Materials (discovered 2 exits: *Fac x2) -7/Factory -7/Storage -6/Factory (discovered 5 exits: *Fac / Low x2 / Ext x2) -5/Factory -5/Upper Caves -5/Upper Caves -4/Factory -4/Upper Caves -4/Upper Caves -4/Warlord History --------- Turn | Location | Event 4 | -11/Scrapyard | Discovered new exit (range 16) 146 | -11/Scrapyard | Entered Materials 308 | -10/Materials | Build established: Mutant 700 | -10/Materials | Discovered new exit (range 8) 895 | -10/Materials | Discovered new exit (range 8) 1151 | -10/Materials | Entered another Materials area 1151 | -9/Materials | Evolved 2 slots: Utility x1, Weapon x1 1439 | -9/Materials | Build established: Tank 1488 | -9/Materials | Discovered new exit (range 8) 2366 | -9/Materials | Identified exit to Mines 2458 | -9/Materials | Discovered new exit (range 5) 2486 | -9/Materials | Identified exit to Materials 2674 | -9/Materials | Entered Mines 2781 | -9/Mines | Found a hidden stash of uninstalled traps 2885 | -9/Mines | Discovered exit to Materials (range 5) 2962 | -9/Mines | Received a Rocket Launcher from a helpful Derelict 3273 | -9/Mines | Learned location of Storage (-7) 3283 | -9/Mines | Met a Derelict shopkeep closing up shop 4192 | -9/Mines | Discovered exit to Materials (range 10) 4417 | -9/Mines | Entered Materials 4417 | -8/Materials | Evolved 2 slots: Utility x2 4712 | -8/Materials | Build established: Hauler-Tank 4957 | -8/Materials | Repaired Imp. Light Cannon 4991 | -8/Materials | Repaired Imp. Light Cannon 5019 | -8/Materials | Repaired Lgt. Treads 5053 | -8/Materials | Repaired Shield Generator 5087 | -8/Materials | Repaired Imp. Light Cannon 5115 | -8/Materials | Repaired Lgt. Treads 5460 | -8/Materials | Repaired Broken Lgt. Treads 5494 | -8/Materials | Repaired Med. Armor Plating 5703 | -8/Materials | Discovered new exit (range 8) 6201 | -8/Materials | Discovered new exit (range 8) 6301 | -8/Materials | Entered Factory 6301 | -7/Factory | Evolved 2 slots: Utility x2 6694 | -7/Factory | Fabricated Enh. Autogun? 6893 | -7/Factory | Local fabrication network quarantined 6926 | -7/Factory | Fabricated Enh. Autogun? 7981 | -7/Factory | Repaired Hrd. Medium Armor Plating 8608 | -7/Factory | Discovered new exit (range 4) 8613 | -7/Factory | Identified exit to Storage 8760 | -7/Factory | Garrison activated, responded to threat 8923 | -7/Factory | Entered Storage 9419 | -7/Storage | Build established: Hauler-Skirmisher 10255 | -7/Storage | Found Prototype Processor 10255 | -7/Storage | Identified Exp. Targeting Computer 11390 | -7/Storage | Repaired Med. Treads 11481 | -7/Storage | Discovered new exit (range 9) 11958 | -7/Storage | Garrison activated, responded to threat 12095 | -7/Storage | Identified exit to Factory 12098 | -7/Storage | Entered Factory 12098 | -6/Factory | Evolved 2 slots: Propulsion x1, Utility x1 14337 | -6/Factory | Fabricated Adv. Heavy Treads (x2) 14879 | -6/Factory | Repaired Enh. Nuclear Core 14930 | -6/Factory | Repaired Adv. Sensor Array 16256 | -6/Factory | Repaired Lrg. Storage Unit 16908 | -6/Factory | Identified exit to Lower Caves 16908 | -6/Factory | Identified exit to Extension 16991 | -6/Factory | Discovered new exit (range 15) 17030 | -6/Factory | Identified exit to Factory 17749 | -6/Factory | Entered another Factory area 17749 | -5/Factory | Evolved 2 slots: Propulsion x1, Utility x1 19142 | -5/Factory | Garrison activated, responded to threat 19425 | -5/Factory | Discovered new exit (range 7) 19457 | -5/Factory | Identified exit to Upper Caves 19500 | -5/Factory | Entered Upper Caves 20101 | -5/Upper Caves | Found Alien Artifact 20106 | -5/Upper Caves | Identified Core Expander 20106 | -5/Upper Caves | Installed Core Expander, added new Propulsion slot 21081 | -5/Upper Caves | Learned location of 1 exit from Factory 21198 | -5/Upper Caves | Identified exit to Upper Caves 21477 | -5/Upper Caves | Entered another Upper Caves area 21736 | -5/Upper Caves | Discovered new exit (range 15) 21776 | -5/Upper Caves | Identified exit to Factory 22240 | -5/Upper Caves | Learned Factory non-interactive machine intel 22246 | -5/Upper Caves | Learned Factory trap positions 22656 | -5/Upper Caves | Attracted the attention of an 0b10 outpost 22745 | -5/Upper Caves | Lost 5 parts (1p3u1w) 22873 | -5/Upper Caves | Attracted the attention of an 0b10 checkpoint 23190 | -5/Upper Caves | Entered Factory 23190 | -4/Factory | Evolved 2 slots: Power x1, Utility x1 23191 | -4/Factory | Identified exit to Upper Caves 23192 | -4/Factory | Loaded intel: 105 trap records 23193 | -4/Factory | Loaded intel: 207 non-interactive machine locations 23295 | -4/Factory | Repaired Adv. Heavy Treads 24006 | -4/Factory | Build established: Hauler-Gunner 24066 | -4/Factory | Lost 3 parts (2p1n) 24311 | -4/Factory | Spotted B-86 Titan 24315 | -4/Factory | Garrison activated, responded to threat 24718 | -4/Factory | Core integrity fell below 50% 25291 | -4/Factory | Build established: Hauler-Mutant 25551 | -4/Factory | Entered Upper Caves 25635 | -4/Upper Caves | Attracted the attention of an 0b10 checkpoint 26043 | -4/Upper Caves | Attracted the attention of an 0b10 outpost 26095 | -4/Upper Caves | Destroyed 9 combat bots 26097 | -4/Upper Caves | Lost 4 parts (1p3u) 26350 | -4/Upper Caves | Build established: Hauler-Gunner 26495 | -4/Upper Caves | System corruption reached 10% 26801 | -4/Upper Caves | Build established: Scavenger-Tank 27881 | -4/Upper Caves | Learned Research non-interactive machine intel 28268 | -4/Upper Caves | Discovered new exit (range 15) 28316 | -4/Upper Caves | Entered another Upper Caves area 28317 | -4/Upper Caves | Identified exit to Warlord 28386 | -4/Upper Caves | Encountered a Warlord checkpoint 28458 | -4/Upper Caves | Attracted the attention of an 0b10 checkpoint 28583 | -4/Upper Caves | Entered Warlord 28657 | -4/Warlord | System corruption cleaned by Quarantine Array 29029 | -4/Warlord | Met Warlord 29054 | -4/Warlord | Warlord's base attacked by MAIN.C 29341 | -4/Warlord | Found Prototype Energy Gun 29342 | -4/Warlord | Identified Vortex Rail 29345 | -4/Warlord | Found Vortex Rail 29404 | -4/Warlord | Warlord forces counterattacked 29714 | -4/Warlord | Spotted Striker 29755 | -4/Warlord | Core integrity fell below 20% 29758 | -4/Warlord | Destroyed by L-61 Swordsman with Power Sword Last Messages --------------- 29754_ Penetrated by Slug. 29754_ Slug penetrates Wall. 29754_ B-74 Champion overheating. 29754_ Magnetic Acceleration Cannon destroyed. 29755_ Unknown Energy Gun fries itself beyond repair. 29755_ B-74 Champion overheating. 29755_ Slug penetrates Wall. 29755_ Hcp. Storage Unit destroyed. 29755_ Slug penetrates Wall. 29756_ Com. Wheel fries itself beyond repair. 29756_ B-74 Champion overheating. 29757_ B-74 Champion heat damages Med. Treads. 29757_ Vortex penetrates Striker. 29757_ Vortex penetrates Wall. 29757_ B-74 Champion overheating. 29757_ Lrg. Storage Unit destroyed. 29758_ Myomer Leg self-destruct mechanism malfunctions. 29758_ Penetrated by Slug. 29758_ B-74 Champion overheating. [Achievement: 20k Club] Map ----- +----------------------------------------------------+ | "## #?????????????????????????????????????????? | | "## #????????????????????? ???????????????? | | ""## #???????????????????? #??????????????? | | ""## #????????????????????# #??????????????? | | ""## #????????????????????# #??????????????? | | ""## ##???????????????????# ######+##??????? | | #### X#???????????????????# #??????? | | ???# ##???????????????????# ##?????" | | ???# #???????????????????# #????#" | | ???# ##???????????????????# #?????#" | | ???# #????????????????????# #### #######" | | ??## ##???????????????????# # # " | | ### #######???########??# # # " | | ##X ##?##""# #### # # " | | + X"###"""" # + ^ | | # "##" + s +^ ^ | | ### ## X"## # + | | ### ###X X "##"" "" # hh + ^ | | #?# #?#"""""#?# [ # # s###### # " | | #?# #?#######?######### ##???# # " | | #?# #?????????????????# #???# # " | | ### ##????????????????# ######### #######" | | ## #????????????????# # # #?????#" | | ### ##################=* # / #?????#" | | ### %^%l[ # g # #??????" | | + ####;;;; ^!K@[*[ ;g i # #??????" | | ### #??????# b!g!!g #g ; #??????? | | #?#######??????# ^ =%=* # # #??????? | | #??????????????######+##### ### # #??????? | | #??????????????????# #?###?# # #??????? | | #??????????????????# #?????# # #??????? | | ##########?????????# &#?????# ## #??????? | | ## #?????????# &#?????# ## #??????? | | ## #?????????######?????######+### #??????? | | / #?#######?????????????????????# ??????? | | ## #?# X#?????????????????????# #??????? | | ?# #?# "?????????????????????? #??????? | | ?# #?# "?????????????????????? #??????? | | ?# #?# "?????????????????????? ??????? | | ?# #?# #?????????????????????? ??????? | | ?# #?# ########???????????????? ??????? | | ?# #?# """"""""#??????????????? ??????? | | ## #?# "#???????????????"" ??????? | | #######+#### "#????????????????????????? | | /^ "#????????????????????????? | | / ""#????????????????????????? | | ^/ "#????????????????????????? | | ##/######### "#????????????????????????? | | #?# "#????????????????????????? | | " """" #?#""""""""""""#????????????????????????? | +----------------------------------------------------+ Best States ------------- Heat Dissipation 81 Energy Generation 32 Energy Capacity 680 Matter Stores 300 Matter Capacity 550 Sight Range 16 Robot Scan Range 16 Terrain Scan Range 20 Terrain Scan Density 10 ECM Strength 2 Base Temperature (-) 200 Armor Coverage 1200 Resistance: KI 20 Resistance: TH 20 Resistance: EX 20 Resistance: EM 20 Resistance: I 20 Resistance: S 20 Resistance: P 20 Utility Shielding 66 Evasion (%) 50 Targeting Accuracy 26 Recoil Reduction 5 Offensive Hacking 20 Item Schematics ----------------- Enh. Autogun | -8/Materials | Scanalyzed Robot Schematics ------------------ None Fabricated ------------ Enh. Autogun | x1 | -7/Factory Enh. Autogun | x1 | -7/Factory Adv. Heavy Treads | x2 | -6/Factory | Preloaded Alien Tech Used ----------------- Core Expander Achievements -------------- 20k Club A Powerful Ally? Alien Tech I Spy Knowing Is Half The Battle Packrat Power Corrupts Prolific Hacker Quick And Dirty Respectable Loadout System Compromised Tank Challenges ------------ None Game ------ Seed MagneticGravitonShield Manual? 0 Play Time 03:45:56 Cumulative 13.2 hours Start 2021.06.01 @ 18:03:19 End 2021.06.08 @ 21:06:09 Sessions 17 Manual Loads 0 Difficulty Adventurer Special Mode None Game No. 6 Rogue 0 Adventurer 6 Explorer 0 Win Type - Total 0 Types 0/0/0/0/0/0/0/0/0 Lore% 10 Gallery% 15 Achievement% 17 Wizard Run 0 Options --------- ASCII 0 Keyboard 0 Movement Arrows Keybinds 0 Fullscreen 1 Font 24/Smallcaps Map View 113x50 Tactical HUD 1 Map Filters NONE Filters NONE Steam 1 RUN: 72d746b8-1321-4151-ac8a-f9d4d3b41d78